bitfinex/quotes_SOLUSD_20250617
["timestamp","ask_amount","ask_price","bid_price","bid_amount"]
[1750191898134,8.2909132,149.02,148.98,8.2909132]
[1750191898666,8.2909132,149.02,148.96,1.5366]
[1750191898667,8.2909132,148.99,148.96,1.5366]
[1750191898852,8.2909132,148.99,148.94,8.2909132]
[1750191899165,8.2909132,148.97,148.92,9.9007132]
[1750191899560,4.94012523,148.97,148.92,8.2909132]
[1750191899764,4.94012523,148.97,148.94,8.2909132]
[1750191899972,13.37276693,148.98,148.94,8.2909132]
[1750191900339,5.08201338,148.98,148.94,8.2909132]
[1750191900665,19.9430933,148.98,148.91,6.71546571]
[1750191900842,19.9430933,148.98,148.94,8.2909132]
[1750191901164,19.9430933,148.98,148.92,8.2909132]
[1750191901165,13.23076501,148.97,148.92,8.2909132]
[1750191901554,4.93985181,148.96,148.92,8.2909132]
[1750191901754,4.93985181,148.96,148.93,8.2909132]
[1750191901965,4.93985181,148.97,148.93,8.2909132]
[1750191902165,4.93985181,148.96,148.94,8.2909132]
[1750191902366,6.71232829,148.98,148.94,8.2909132]
[1750191902367,4.93985181,148.97,148.94,8.2909132]
[1750191902559,4.95170446,148.96,148.94,8.2909132]
[1750191903674,4.95170446,148.96,148.93,8.2909132]
[1750191904480,4.95170446,148.96,148.94,8.2909132]
[1750191904660,11.80666885,148.97,148.94,8.2909132]
[1750191905046,15.14587759,148.97,148.93,8.2909132]
[1750191905265,4.95170446,148.96,148.93,8.2909132]
[1750191905580,8.2909132,148.94,148.88,1.6098]
[1750191905744,4.95170446,148.93,148.9,8.2909132]
[1750191905943,4.95170446,148.94,148.91,8.2909132]
[1750191906579,4.95170446,148.93,148.91,8.2909132]
[1750191906753,4.95409601,148.93,148.91,8.2909132]
[1750191907155,4.95409601,148.93,148.92,8.2909132]
[1750191907371,4.95773248,148.98,148.92,8.2909132]
[1750191907572,4.95773248,148.97,148.92,6.3966]
[1750191907761,4.95773248,149.0,148.96,8.2909132]
[1750191908067,4.95773248,149.0,148.92,6.3966]
[1750191908068,4.95773248,148.99,148.97,8.2909132]
[1750191908248,18.79181043,148.97,148.89,6.71635604]
[1750191908453,13.24864568,148.96,148.92,8.2909132]
[1750191908668,4.95773248,148.95,148.92,8.2909132]
[1750191908872,4.95773248,148.94,148.92,8.2909132]
[1750191909077,4.95773248,148.95,148.92,8.2909132]
[1750191909263,4.95773248,148.94,148.92,8.2909132]
[1750191909452,4.95773248,148.93,148.92,8.2909132]
[1750191909647,12.89467517,149.03,148.94,1.6291]
[1750191909851,13.25468025,149.02,148.98,8.2909132]
[1750191910067,5.10592862,149.01,148.98,8.2909132]
[1750191910280,4.96376705,149.0,148.98,8.2909132]
[1750191910453,4.96376705,148.99,148.94,1.6291]
[1750191910655,4.96376705,148.98,148.97,8.2909132]
[1750191910847,4.96485196,148.98,148.97,8.2909132]
[1750191911675,4.96485196,148.98,148.97,15.00367415]
[1750191912550,4.96485196,149.0,148.97,15.00367415]
[1750191912749,4.96485196,148.99,148.98,8.2909132]
[1750191913351,4.96485196,149.03,148.98,8.2909132]
[1750191913687,4.96416857,149.02,149.0,8.2909132]
[1750191913859,4.96416857,149.01,149.0,8.2909132]
[1750191914058,4.96416857,149.01,148.99,8.2909132]
[1750191914258,4.96416857,149.0,148.99,8.2909132]
[1750191916473,6.71022147,149.03,148.99,8.2909132]
[1750191916791,5.10483748,149.02,149.0,8.2909132]
[1750191916997,4.96267591,149.01,149.0,8.2909132]
[1750191919760,4.96973176,149.01,148.97,6.71262336]
[1750191920052,45.97565438,149.04,148.97,6.71262336]
[1750191920053,4.96973176,149.0,148.97,6.71262336]
[1750191920258,4.96985254,149.03,148.97,23.49452575]
[1750191920454,4.96985254,149.02,148.98,26.0]
[1750191920683,10.10372628,149.04,148.98,26.0]
[1750191920882,4.97024669,149.03,148.98,26.0]
[1750191921066,0.14216157,149.06,149.02,8.2909132]
[1750191921274,4.96923404,149.05,149.03,8.2909132]
[1750191921460,4.96923404,149.04,149.03,8.2909132]
[1750191921966,4.96871183,149.04,149.03,8.2909132]
[1750191922365,4.96859387,149.04,149.03,8.2909132]
[1750191923184,4.96859387,149.04,149.03,15.00097157]
[1750191923397,4.97227992,149.04,149.03,8.2909132]
[1750191925292,4.97000041,149.06,149.03,15.00097157]
[1750191925491,4.97000041,149.05,149.03,6.71005837]
[1750191925700,4.97000041,149.07,149.03,6.71005837]
[1750191925912,11.67831147,149.07,149.01,6.71095899]
[1750191926195,6.70831106,149.07,149.01,6.71095899]
[1750191926880,6.70831106,149.07,149.04,8.2909132]
[1750191927475,11.67790833,149.07,149.04,8.2909132]
[1750191928285,6.70831106,149.07,149.04,8.2909132]
[1750191928585,0.14216157,149.07,149.05,8.2909132]
[1750191928993,0.14216157,149.07,149.04,8.2909132]
[1750191930199,6.85068505,149.07,149.04,8.2909132]
[1750191930699,28.98,149.08,149.06,8.2909132]
[1750191930895,5.10908066,149.09,149.06,8.2909132]
[1750191931085,40.76691909,149.1,149.07,8.2909132]
[1750191931480,11.80691909,149.1,149.07,8.2909132]
[1750191931688,0.14216157,149.09,149.07,8.2909132]
[1750191932604,18.51399911,149.1,149.08,8.2909132]
[1750191932605,6.84,149.1,149.08,8.2909132]
[1750191932899,6.84,149.1,149.09,8.2909132]
[1750191934183,4.96498233,149.13,149.09,14.99827117]
[1750191934375,59.27990005,149.14,149.11,8.2909132]
[1750191934581,4.96498233,149.13,149.11,8.2909132]
[1750191934780,4.96498233,149.14,149.12,8.2909132]
[1750191935091,3.4972636,149.15,149.12,8.2909132]
[1750191935402,28.96,149.15,149.12,8.2909132]
[1750191935698,4.96498233,149.15,149.12,8.2909132]
[1750191936074,4.96498233,149.15,149.14,8.2909132]
[1750191936278,16.17691474,149.16,149.12,8.2909132]
[1750191936279,21.14189707,149.16,149.12,8.2909132]
[1750191937077,21.14189707,149.16,149.11,6.70645831]
[1750191937283,16.17691474,149.16,149.13,8.2909132]
[1750191937480,16.17691474,149.16,149.11,6.70645831]
[1750191937679,16.17691474,149.16,149.11,14.99737151]
[1750191937680,8.2909132,149.15,149.11,14.99737151]
[1750191937884,8.2909132,149.15,149.11,8.2909132]
[1750191938094,14.99578353,149.15,149.11,8.2909132]
[1750191938301,6.70487033,149.15,149.11,8.2909132]
[1750191938503,14.99578353,149.15,149.11,8.2909132]
[1750191938713,8.2909132,149.15,149.11,14.9973384]
[1750191938914,60.11222602,149.16,149.12,8.2909132]
[1750191939112,45.11691474,149.16,149.13,8.2909132]
[1750191939417,45.11691474,149.16,149.11,6.7064252]
[1750191939598,53.40782794,149.16,149.12,8.2909132]
[1750191939802,24.46782794,149.16,149.12,8.2909132]
[1750191940318,16.17691474,149.16,149.14,8.2909132]
[1750191940837,16.17691474,149.16,149.1,8.2909132]
[1750191940838,6.84,149.16,149.13,6.70538612]
[1750191940994,6.84,149.16,149.14,8.2909132]
[1750191942044,6.84,149.16,149.12,16.57221504]
[1750191942219,6.84,149.16,149.13,8.2909132]
[1750191942220,11.78481023,149.16,149.13,8.2909132]
[1750191942994,6.84,149.16,149.13,8.2909132]
[1750191943193,21.83524442,149.16,149.12,1.5753]
[1750191943433,21.83524442,149.16,149.12,9.8662132]
[1750191944004,6.84,149.16,149.13,8.2909132]
[1750191944205,6.84,149.16,149.14,8.2909132]
[1750191944595,6.84,149.16,149.15,8.2909132]
[1750191944896,4.94365894,149.18,149.15,8.2909132]
[1750191945102,4.94365894,149.21,149.17,14.99451857]
[1750191945409,11.64564065,149.21,149.17,14.99451857]
[1750191945600,4.94365894,149.21,149.18,8.2909132]
[1750191946936,4.94365894,149.21,149.17,6.70369324]
[1750191947116,4.94365894,149.21,149.18,8.2909132]
[1750191947319,55.65619691,149.22,149.17,6.70369324]
[1750191947552,27.08272363,149.2,149.14,6.70494177]
[1750191947834,4.94365894,149.19,149.16,8.2909132]
[1750191948133,4.94365894,149.21,149.18,8.2909132]
[1750191948304,4.94365894,149.21,149.19,8.2909132]
[1750191948847,11.76365894,149.22,149.18,8.2909132]
[1750191949026,4.94365894,149.22,149.21,8.2909132]
[1750191949215,11.78701972,149.23,149.2,8.2909132]
[1750191949414,20.07793292,149.23,149.19,9.8264132]
[1750191949915,5.08582051,149.23,149.2,8.2909132]
[1750191950143,11.78694017,149.23,149.2,8.2909132]
[1750191950838,20.07785337,149.23,149.19,9.8264132]
[1750191951351,20.07785337,149.23,149.19,16.52922553]
[1750191951527,11.78694017,149.23,149.2,8.2909132]
[1750191952825,11.78438907,149.23,149.2,8.2909132]
[1750191953318,5.08326941,149.23,149.2,8.2909132]
[1750191953518,4.94110784,149.23,149.2,14.99328064]
[1750191953720,4.94110784,149.23,149.21,8.2909132]
[1750191953926,4.94110784,149.23,149.19,1.5355]
[1750191954135,11.64218307,149.23,149.2,8.2909132]
[1750191955236,4.94110784,149.23,149.19,1.5355]
[1750191955443,4.94110784,149.23,149.2,8.2909132]
[1750191955740,0.14216157,149.23,149.2,8.2909132]
[1750191955945,5.08642601,149.23,149.2,8.2909132]
[1750191957408,5.08642601,149.23,149.19,8.2382305]
[1750191957612,5.08642601,149.23,149.21,8.2909132]
[1750191957812,4.94426444,149.23,149.19,8.2382305]
[1750191958043,4.94468835,149.25,149.22,8.2909132]
[1750191958248,4.94468835,149.25,149.19,8.2382305]
[1750191958249,6.78,149.26,149.24,8.2909132]
[1750191958543,6.78,149.26,149.25,8.2909132]
[1750191958544,4.94423053,149.26,149.25,8.2909132]
[1750191959353,1.411235,149.27,149.25,9.9529132]
[1750191959517,1.411235,149.27,149.26,14.99063181]
[1750191960514,4.94423053,149.31,149.26,31.73992833]
[1750191960715,6.16746065,149.38,149.28,8.2909132]
[1750191960716,8.2909132,149.32,149.28,8.2909132]
[1750191960920,4.94423053,149.32,149.3,8.2909132]
[1750191961131,4.94423053,149.32,149.27,26.0]
[1750191961132,4.94423053,149.33,149.31,8.2909132]
[1750191961333,4.95177372,149.36,149.32,8.2909132]
[1750191961522,4.95177372,149.38,149.35,8.2909132]
[1750191961730,4.95177372,149.37,149.35,6.69537986]
[1750191961953,4.95177372,149.38,149.36,8.2909132]
[1750191962158,8.42534372,149.4,149.37,8.2909132]
[1750191962159,4.95177372,149.39,149.37,8.2909132]
[1750191962450,3.49108572,149.4,149.35,6.69537986]
[1750191962631,6.69164882,149.44,149.35,6.69537986]
[1750191962838,26.0,149.41,149.3,6.0967]
[1750191963148,26.0,149.41,149.14,226.40772199]
[1750191963149,45.07613357,149.36,149.24,1.6379]
[1750191963447,45.07613357,149.36,149.22,6.1582]
[1750191963448,6.69837229,149.29,149.2,14.99332606]
[1750191963648,35.74216157,149.28,149.19,8.34063345]
[1750191963971,8.2909132,149.24,149.19,8.34063345]
[1750191964269,8.2909132,149.23,149.19,1.6379]
[1750191964432,0.14216157,149.24,149.19,8.34066823]
[1750191964433,13.36880699,149.24,149.19,8.34066823]
[1750191964747,4.93471067,149.24,149.19,8.34066823]
[1750191964948,14.15499978,149.24,149.19,8.34066823]
[1750191965152,14.15499978,149.24,149.2,14.15499978]
[1750191965447,14.15499978,149.24,149.19,8.34066823]
[1750191965651,14.15499978,149.24,149.2,14.15499978]
[1750191966453,14.15499978,149.24,149.2,20.85737875]
[1750191966657,14.15499978,149.25,149.2,6.70237897]
[1750191966855,14.15499978,149.25,149.2,20.85737875]
[1750191967029,14.15499978,149.24,149.19,8.34066935]
[1750191967234,19.09469708,149.24,149.19,22.49566913]
[1750191967640,4.9396973,149.24,149.21,14.15499978]
[1750191967940,14.15499978,149.22,149.17,20.85860417]
[1750191968139,0.14216157,149.24,149.17,20.85860417]
[1750191968140,14.15499978,149.21,149.17,20.85860417]
[1750191968467,37.88718397,149.24,149.2,14.15499978]
[1750191968644,14.15499978,149.23,149.19,14.15499978]
[1750191969433,14.15499978,149.23,149.18,6.70316887]
[1750191969658,16.75499978,149.22,149.18,20.85816865]
[1750191970135,2.6,149.22,149.19,14.15499978]
[1750191971828,2.6,149.22,149.19,6.70267776]
[1750191972030,14.29716135,149.24,149.2,14.15499978]
[1750191972256,14.15499978,149.23,149.19,20.85767754]
[1750191972564,14.15499978,149.22,149.18,20.85816801]
[1750191972973,6.84293202,149.24,149.19,14.15499978]
[1750191973144,14.15499978,149.23,149.19,14.15499978]
[1750191973349,6.84293202,149.24,149.19,14.15499978]
[1750191973543,14.15499978,149.23,149.19,14.15499978]
[1750191974650,1.3,149.22,149.19,14.15499978]
[1750191974958,1.3,149.22,149.19,20.85785885]
[1750191975660,1.3,149.22,149.17,26.0]
[1750191975839,1.3,149.22,149.18,14.15499978]
[1750191976040,15.45499978,149.22,149.17,26.0]
[1750191976262,20.4034248,149.22,149.18,14.15499978]
[1750191976447,6.24842502,149.22,149.2,14.15499978]
[1750191976758,6.24842502,149.22,149.19,14.15499978]
[1750191976759,1.3,149.22,149.19,14.15499978]
[1750191977266,1.3,149.22,149.18,23.46149706]
[1750191977573,1.3,149.22,149.2,14.15499978]
[1750191977736,1.3,149.22,149.18,6.70321848]
[1750191977939,15.45499978,149.22,149.18,20.85821826]
[1750191978349,1.3,149.22,149.19,14.15499978]
[1750191978547,6.256132,149.22,149.19,14.15499978]
[1750191979050,4.956132,149.21,149.19,14.15499978]
[1750191979253,6.256132,149.22,149.19,14.15499978]
[1750191979456,1.3,149.22,149.21,14.15499978]
[1750191980166,1.3,149.22,149.21,20.85696345]
[1750191981578,1.3,149.22,149.2,6.70229877]
[1750191981751,1.3,149.22,149.19,6.7026803]
[1750191981752,15.45499978,149.22,149.19,6.7026803]
[1750191982081,4.96789027,149.21,149.19,6.7026803]
[1750191982865,15.45499978,149.22,149.2,14.15499978]
[1750191982866,1.3,149.22,149.2,14.15499978]
[1750191983045,1.3,149.22,149.21,14.15499978]
[1750191983442,6.26898521,149.22,149.21,14.15499978]
[1750191983769,1.3,149.22,149.21,14.15499978]
[1750191984540,1.3,149.22,149.21,20.85696345]
[1750191985276,6.27322917,149.22,149.21,20.85696345]
[1750191985475,1.3,149.22,149.21,20.85696345]
[1750191985649,6.27322917,149.22,149.21,20.85696345]
[1750191985975,1.3,149.22,149.21,20.85696345]
[1750191987267,6.27461507,149.22,149.21,20.85696345]
[1750191987461,1.3,149.22,149.21,6.70196367]
[1750191987666,6.27461507,149.22,149.19,14.15499978]
[1750191987851,4.97461507,149.21,149.19,14.15499978]
[1750191988172,4.97803122,149.2,149.18,6.70331143]
[1750191988344,1.3,149.22,149.19,14.15499978]
[1750191988674,4.97835176,149.21,149.2,20.85741264]
[1750191989462,4.97929287,149.21,149.2,20.85741264]
[1750191989966,4.97929287,149.21,149.18,6.70331143]
[1750191990168,4.97929287,149.2,149.18,20.85831121]
[1750191990342,4.97929287,149.19,149.18,20.85831121]
[1750191990843,4.97929287,149.19,149.16,6.70421024]
[1750191990844,19.13429265,149.19,149.16,6.70421024]
[1750191991057,4.97929287,149.18,149.16,6.70421024]
[1750191991262,4.97929287,149.17,149.14,14.15499978]
[1750191991469,4.97771963,149.16,149.15,6.70449764]
[1750191992084,4.97766679,149.16,149.15,6.70449764]
[1750191993378,14.15499978,149.18,149.15,6.70449764]
[1750191993379,4.97766679,149.17,149.15,6.70449764]
[1750191993584,14.15499978,149.18,149.15,6.70449764]
[1750191993796,4.97707349,149.17,149.15,6.70449764]
[1750191995279,4.97557184,149.16,149.13,20.86055868]
[1750191995487,19.13188803,149.16,149.13,6.7055589]
[1750191995795,4.97555598,149.15,149.12,20.86100836]
[1750191996088,19.27271733,149.16,149.12,6.70600858]
[1750191996294,14.29716135,149.16,149.12,20.86100836]
[1750191996653,19.27127274,149.16,149.12,20.86100836]
[1750191996861,14.29716135,149.16,149.12,20.86100836]
[1750191997061,0.14216157,149.16,149.12,20.86100836]
[1750191997256,19.27121383,149.16,149.12,20.86100836]
[1750191997492,0.14216157,149.16,149.12,20.86100836]
[1750191997698,19.27123055,149.16,149.12,20.86100836]
[1750191997861,14.29716135,149.16,149.12,20.86100836]
[1750191998356,19.27118071,149.16,149.12,20.86100836]
[1750191998555,14.29716135,149.16,149.12,20.86100836]
[1750191999066,19.26851546,149.16,149.12,20.86100836]
[1750191999367,0.14216157,149.16,149.12,20.86100836]
[1750191999549,4.97142253,149.16,149.14,14.15499978]
[1750191999754,14.15499978,149.15,149.07,67.374941]
[1750191999958,14.15499978,149.15,149.06,6.708527]
[1750191999959,14.15499978,149.1,149.06,6.708527]
[1750192000158,14.15499978,149.1,149.05,6.7089823]
[1750192000362,14.15499978,149.1,149.05,20.86398208]
[1750192000668,4.97142253,149.11,149.05,20.86398208]
[1750192000669,14.15499978,149.09,149.05,20.86398208]
[1750192000852,4.96608621,149.1,149.06,14.15499978]
[1750192001270,4.96608621,149.1,149.05,6.7089823]
[1750192001504,19.12108599,149.09,149.05,20.86398208]
[1750192001675,14.15499978,149.09,149.05,20.86398208]
[1750192002196,4.96520699,149.08,149.05,20.86398208]
[1750192002376,19.12020677,149.09,149.05,20.86398208]
[1750192002581,14.15499978,149.1,149.05,20.86398208]
[1750192002761,14.15499978,149.1,149.05,6.7089823]
[1750192002762,19.10925385,149.1,149.05,6.7089823]
[1750192002965,14.15499978,149.1,149.05,20.86398208]
[1750192003353,14.15499978,149.09,149.05,20.86398208]
[1750192003788,19.10719016,149.09,149.05,20.86398208]
[1750192004085,14.15499978,149.09,149.05,20.86398208]
[1750192004891,0.14216157,149.09,149.05,6.7089823]
[1750192005092,0.14216157,149.09,149.04,6.70948142]
[1750192005093,0.14216157,149.07,149.04,6.70948142]
[1750192005407,5.08722905,149.09,149.05,14.15499978]
[1750192005588,0.14216157,149.09,149.06,20.86335108]
[1750192005793,14.15499978,149.11,149.07,14.15499978]
[1750192005976,0.14216157,149.11,149.08,14.15499978]
[1750192006388,0.14216157,149.11,149.07,14.15499978]
[1750192007402,14.29716135,149.11,149.07,14.15499978]
[1750192007580,19.25486641,149.11,149.06,20.86335108]
[1750192008270,19.25486641,149.11,149.07,20.86294931]
[1750192008805,14.29716135,149.11,149.07,20.86294931]
[1750192008983,19.25471905,149.11,149.07,20.86294931]
[1750192009574,4.9575577,149.11,149.09,14.15499978]
[1750192009772,4.9575577,149.13,149.07,6.70794953]
[1750192009962,4.9575577,149.13,149.09,14.15499978]
[1750192010169,19.11255748,149.13,149.09,20.86198081]
[1750192010466,19.11255748,149.13,149.09,6.70698103]
[1750192010667,19.11255748,149.13,149.09,20.86198081]
[1750192011008,4.9575577,149.13,149.1,14.15499978]
[1750192012798,4.9575577,149.13,149.1,20.86163099]
[1750192013509,4.9575577,149.13,149.12,14.15499978]
[1750192013806,6.72,149.14,149.12,14.15499978]
[1750192014413,6.72,149.14,149.1,6.70663121]
[1750192014587,25.82518166,149.14,149.1,20.86163099]
[1750192014910,4.95018188,149.13,149.11,14.15499978]
[1750192015105,6.72,149.14,149.11,14.15499978]
[1750192015307,25.82518166,149.14,149.1,6.70663121]
[1750192015491,4.95018188,149.13,149.1,20.86163099]
[1750192016106,4.94994427,149.13,149.1,20.86163099]
[1750192016812,16.17092578,149.14,149.1,9.45092578]
[1750192017214,21.12117871,149.14,149.1,9.45092578]
[1750192017393,0.14216157,149.13,149.09,9.45092578]
[1750192017721,0.14216157,149.13,149.1,9.45092578]
[1750192018195,0.14216157,149.13,149.07,6.70825786]
[1750192018400,0.14216157,149.13,149.1,9.45092578]
[1750192018600,5.09198672,149.13,149.1,9.45092578]
[1750192019889,21.24847882,149.13,149.09,16.15792225]
[1750192020090,9.45092578,149.12,149.08,6.70754802]
[1750192020417,9.45092578,149.12,149.08,16.1584738]
[1750192021317,9.59308735,149.11,149.07,16.15902029]
[1750192021526,5.09198672,149.11,149.08,9.45092578]
[1750192021889,5.09198672,149.11,149.09,9.45092578]
[1750192022088,5.09198672,149.11,149.07,6.70809451]
[1750192022089,28.76,149.12,149.1,9.45092578]
[1750192022290,0.14216157,149.13,149.1,9.45092578]
[1750192022709,14.54157092,149.13,149.09,9.45092578]
[1750192022893,14.54139736,149.13,149.07,6.70809451]
[1750192023102,9.45092578,149.12,149.08,9.45092578]
[1750192023309,9.45092578,149.12,149.08,16.15841257]
[1750192023510,21.24700719,149.13,149.09,9.45092578]
[1750192024392,21.24700719,149.13,149.09,16.15826026]
[1750192024592,9.59308735,149.13,149.09,16.15826026]
[1750192025119,21.24820247,149.13,149.09,16.15826026]
[1750192025821,4.94953137,149.12,149.09,16.15826026]
[1750192026019,21.24818567,149.13,149.09,16.15826026]
[1750192026319,9.45092578,149.12,149.08,16.15859421]
[1750192027324,5.09169294,149.13,149.08,16.15859421]
[1750192027522,11.66953137,149.14,149.11,9.45092578]
[1750192027696,6.72,149.14,149.11,9.45092578]
[1750192028024,6.72,149.14,149.12,9.45092578]
[1750192028219,6.72,149.14,149.11,9.45092578]
[1750192028604,6.72,149.14,149.1,9.45092578]
[1750192028802,11.67363923,149.14,149.1,9.45092578]
[1750192029125,11.67363923,149.14,149.09,1.5712]
[1750192029126,11.67363923,149.14,149.11,9.45092578]
[1750192029324,4.95363923,149.13,149.11,16.1569404]
[1750192029622,4.95363923,149.14,149.12,9.45092578]
[1750192029821,14.40456501,149.16,149.12,9.45092578]
[1750192029997,4.95363923,149.15,149.12,9.45092578]
[1750192030397,4.96148471,149.15,149.12,9.45092578]
[1750192031008,4.96148471,149.16,149.12,9.45092578]
[1750192031211,4.96148471,149.15,149.12,9.45092578]
[1750192031424,14.41416069,149.16,149.12,16.15658182]
[1750192031630,4.96242113,149.15,149.12,16.15658182]
[1750192032325,4.96242113,149.14,149.12,16.15658182]
[1750192032536,4.96242113,149.13,149.12,16.15658182]
[1750192032915,4.97217683,149.13,149.12,16.15658182]
[1750192033126,4.97217683,149.15,149.12,16.15658182]
[1750192033316,4.97217683,149.14,149.12,16.15658182]
[1750192033526,4.97217683,149.13,149.12,16.15658182]
[1750192033726,4.97217683,149.15,149.12,16.15658182]
[1750192033922,4.97217683,149.14,149.09,18.33861098]
[1750192034123,4.97217683,149.13,149.1,23.47417839]
[1750192034304,0.14216157,149.16,149.12,9.45092578]
[1750192034512,4.97169548,149.15,149.12,9.45092578]
[1750192034718,4.97169548,149.14,149.12,9.45092578]
[1750192034916,4.97169548,149.13,149.12,9.45092578]
[1750192035121,4.97169548,149.15,149.12,9.45092578]
[1750192035322,4.97169548,149.14,149.12,9.45092578]
[1750192035645,4.97169548,149.13,149.12,16.15693436]
[1750192036315,4.97169548,149.13,149.12,6.70600858]
[1750192036510,4.97169548,149.13,149.12,16.15693436]
[1750192036831,6.27169548,149.13,149.12,16.15693436]
[1750192037245,6.27169548,149.13,149.12,9.45092578]
[1750192037732,6.28141199,149.13,149.11,16.15716969]
[1750192037937,4.98141199,149.12,149.11,16.15716969]
[1750192038148,4.98141199,149.12,149.11,9.45092578]
[1750192039307,22.4197467,149.13,149.09,9.45092578]
[1750192039510,4.98249459,149.12,149.1,9.45092578]
[1750192039725,4.98249459,149.11,149.1,9.45092578]
[1750192039912,4.98249459,149.11,149.09,6.70725965]
[1750192040121,6.26323491,149.13,149.1,9.45092578]
[1750192040432,4.98198792,149.12,149.1,9.45092578]
[1750192040735,4.98198792,149.11,149.09,9.45092578]
[1750192040937,4.98198792,149.1,149.09,9.45092578]
[1750192042335,4.96323491,149.12,149.09,9.45092578]
[1750192042532,4.96323491,149.12,149.09,16.15828098]
[1750192042708,4.96323491,149.12,149.08,6.70761519]
[1750192042907,4.96323491,149.12,149.09,9.45092578]
[1750192043616,4.96323491,149.11,149.09,9.45092578]
[1750192043808,4.96323491,149.12,149.09,9.45092578]
[1750192044009,4.96323491,149.11,149.09,9.45092578]
[1750192044209,0.14216157,149.11,149.07,6.70810979]
[1750192044412,4.96323491,149.1,149.07,9.45092578]
[1750192044629,4.96323491,149.09,149.06,9.45092578]
[1750192044815,5.10539648,149.08,149.05,9.45092578]
[1750192045232,4.96323491,149.07,149.05,9.45092578]
[1750192045439,5.10539648,149.08,149.05,9.45092578]
[1750192045734,5.10539648,149.08,149.05,16.15990104]
[1750192045936,4.96323491,149.08,149.07,9.45092578]
[1750192046110,4.96323491,149.1,149.07,9.45092578]
[1750192046308,4.96323491,149.13,149.09,9.45092578]
[1750192046533,4.96323491,149.12,149.06,7.9998]
[1750192046842,4.96323491,149.13,149.06,7.9998]
[1750192047025,4.96323491,149.12,149.06,7.9998]
[1750192047223,4.96323491,149.13,149.06,7.9998]
[1750192047440,4.96323491,149.12,149.06,7.9998]
[1750192047627,4.96323491,149.13,149.11,9.45092578]
[1750192047824,4.96323491,149.12,149.11,9.45092578]
[1750192048043,4.96323491,149.13,149.11,9.45092578]
[1750192048248,4.96323491,149.13,149.12,9.45092578]
[1750192048545,4.96323491,149.14,149.12,9.45092578]
[1750192048716,45.87178643,149.17,149.13,9.45092578]
[1750192048911,0.14216157,149.15,149.13,9.45092578]
[1750192049109,4.98952368,149.14,149.13,9.45092578]
[1750192049525,4.98952368,149.14,149.1,9.45092578]
[1750192049711,4.98952368,149.13,149.1,9.45092578]
[1750192049926,4.98952368,149.16,149.12,9.45092578]
[1750192050236,4.98952368,149.15,149.14,9.45092578]
[1750192051158,4.98952368,149.17,149.14,9.45092578]
[1750192051309,4.98952368,149.16,149.14,1.6288]
[1750192051512,4.98952368,149.17,149.16,6.70421024]
[1750192051739,4.98952368,149.17,149.16,16.15513602]
[1750192052341,4.98952368,149.18,149.16,16.15513602]
[1750192052514,4.98952368,149.18,149.17,9.45092578]
[1750192052709,9.49643423,149.19,149.17,9.45092578]
[1750192052913,9.49643423,149.19,149.18,9.45092578]
[1750192053130,14.48595791,149.19,149.18,9.45092578]
[1750192053329,9.49643423,149.19,149.18,9.45092578]
[1750192053735,9.49643423,149.19,149.18,6.70331143]
[1750192053925,9.49643423,149.19,149.18,16.15423721]
[1750192054124,14.48495381,149.19,149.18,16.15423721]
[1750192054419,14.48205343,149.19,149.18,16.15423721]
[1750192056145,14.47800404,149.19,149.15,6.70465973]
[1750192056346,4.98156981,149.18,149.16,9.45092578]
[1750192056529,4.98156981,149.17,149.16,9.45092578]
[1750192056726,4.98156981,149.17,149.15,16.15558551]
[1750192056952,9.49643423,149.19,149.15,16.15558551]
[1750192057128,4.98168741,149.18,149.15,16.15558551]
[1750192057332,4.98168741,149.17,149.15,16.15558551]
[1750192057530,0.6,149.18,149.16,9.45092578]
[1750192057727,4.98102925,149.17,149.16,16.15513602]
[1750192058949,4.98102925,149.17,149.16,6.70421024]
[1750192059454,4.98102925,149.17,149.13,16.15632589]
[1750192059770,10.05092578,149.18,149.14,9.45092578]
[1750192059771,4.98102925,149.16,149.14,9.45092578]
[1750192060052,4.98102925,149.15,149.14,9.45092578]
[1750192060523,4.98102925,149.15,149.14,16.15603507]
[1750192060861,4.98102925,149.15,149.14,6.70510929]
[1750192061036,4.98102925,149.15,149.14,16.15603507]
[1750192064440,4.98102925,149.15,149.11,26.0]
[1750192064631,4.97753248,149.14,149.13,9.45092578]
[1750192065162,4.97720983,149.14,149.12,16.15693436]
[1750192065462,4.97720983,149.13,149.11,6.70628469]
[1750192065635,4.97720983,149.12,149.11,6.70628469]
[1750192066047,4.97720983,149.12,149.11,9.45092578]
[1750192067457,4.97821833,149.12,149.11,16.15706821]
[1750192069765,4.97821833,149.12,149.1,16.15769411]
[1750192069942,9.59308735,149.15,149.1,16.15769411]
[1750192070142,4.97697995,149.14,149.1,16.15769411]
[1750192070339,9.59308735,149.15,149.1,16.15769411]
[1750192070340,4.97697995,149.13,149.1,16.15769411]
[1750192070538,4.97697995,149.12,149.11,9.45092578]
[1750192071762,4.97635104,149.12,149.11,9.45092578]
[1750192073158,4.97574187,149.12,149.1,16.15769411]